bitfinex/quotes_SOLUSD_20251116
["timestamp","ask_amount","ask_price","bid_price","bid_amount"]
[1763261402864,0.68,140.68,140.67,2.73459853]
[1763261403017,0.68,140.72,140.67,2.73459853]
[1763261403355,32.44002769,140.73,140.71,2.73459853]
[1763261403644,9.78882769,140.78,140.72,2.73459853]
[1763261403835,10.46882769,140.78,140.75,2.73459853]
[1763261404042,9.78882769,140.76,140.75,2.73459853]
[1763261404424,0.68,140.76,140.74,2.73459853]
[1763261404645,0.68,140.76,140.75,2.73459853]
[1763261404818,0.68,140.76,140.75,6.76432606]
[1763261405243,3.7150513,140.79,140.75,6.76432606]
[1763261405437,4.3950513,140.79,140.78,6.76432606]
[1763261406652,4.3950513,140.79,140.77,6.76432606]
[1763261407153,0.68,140.78,140.77,6.76432606]
[1763261407351,3.7150513,140.79,140.77,6.76432606]
[1763261407538,0.68,140.78,140.77,6.76432606]
[1763261407723,0.68,140.78,140.72,6.76432606]
[1763261407931,0.68,140.78,140.77,6.76432606]
[1763261408839,4.3950513,140.79,140.77,6.76432606]
[1763261409249,0.68,140.78,140.77,6.76432606]
[1763261412834,0.68,140.78,140.72,6.76432606]
[1763261413156,0.68,140.78,140.77,6.76432606]
[1763261413462,3.7150513,140.79,140.77,6.76432606]
[1763261413757,17.08,140.81,140.78,6.76432606]
[1763261413964,20.79330331,140.81,140.8,6.76432606]
[1763261414140,20.79330331,140.81,140.76,22.6512]
[1763261414329,20.79330331,140.81,140.75,7.1045853]
[1763261414330,21.48330331,140.81,140.75,22.6512]
[1763261414642,4.40330331,140.81,140.76,22.6512]
[1763261414832,4.40330331,140.81,140.8,6.76432606]
[1763261415037,3.71330331,140.81,140.8,6.76432606]
[1763261415241,3.71330331,140.81,140.8,13.52865212]
[1763261415642,0.69,140.84,140.8,13.52865212]
[1763261415860,0.69,140.87,140.83,6.76432606]
[1763261416050,33.13002769,140.89,140.85,6.76432606]
[1763261416438,3.71263551,140.86,140.85,6.76432606]
[1763261416638,0.69,140.88,140.85,6.76432606]
[1763261416854,3.71263551,140.86,140.85,6.76432606]
[1763261417154,3.71263551,140.86,140.8,6.76432606]
[1763261417331,0.69,140.85,140.8,29.41552606]
[1763261417537,3.71263551,140.86,140.84,6.76432606]
[1763261417864,4.40263551,140.86,140.85,6.76432606]
[1763261418242,4.40263551,140.86,140.84,6.76432606]
[1763261418545,0.69,140.85,140.84,6.76432606]
[1763261420568,0.69,140.85,140.8,29.41552606]
[1763261420762,10.47882769,140.85,140.73,9.78882769]
[1763261421076,6.76432606,140.82,140.72,6.76432606]
[1763261421374,16.55315375,140.82,140.77,6.76432606]
[1763261421581,0.69,140.81,140.78,6.76432606]
[1763261421744,7.45432606,140.81,140.72,6.76432606]
[1763261422061,7.45432606,140.81,140.76,6.76432606]
[1763261422278,0.69,140.8,140.78,6.76432606]
[1763261422574,22.6512,140.83,140.73,22.6512]
[1763261422575,0.69,140.81,140.79,6.76432606]
[1763261422738,0.69,140.81,140.78,6.76432606]
[1763261423144,0.69,140.81,140.77,6.76432606]
[1763261423542,0.69,140.81,140.76,6.76432606]
[1763261423543,9.78882769,140.8,140.76,6.76432606]
[1763261423750,16.55315375,140.8,140.76,6.76432606]
[1763261423959,0.69,140.79,140.76,6.76432606]
[1763261425588,22.6512,140.83,140.78,6.76432606]
[1763261425758,10.47882769,140.82,140.81,6.76432606]
[1763261425944,10.47882769,140.82,140.8,6.76432606]
[1763261426281,0.69,140.81,140.8,6.76432606]
[1763261426584,3.71263551,140.86,140.75,22.6512]
[1763261426746,0.69,140.84,140.82,6.76432606]
[1763261426942,0.69,140.84,140.83,6.76432606]
[1763261427144,4.40263551,140.86,140.8,6.76432606]
[1763261427366,4.40263551,140.86,140.84,6.76432606]
[1763261427570,0.69,140.85,140.84,6.76432606]
[1763261427976,0.69,140.85,140.78,22.6512]
[1763261428185,0.69,140.85,140.75,22.6512]
[1763261428186,16.55315375,140.84,140.75,22.6512]
[1763261428347,16.55315375,140.84,140.72,6.76432606]
[1763261428348,6.76432606,140.83,140.79,6.76432606]
[1763261428685,7.45432606,140.83,140.79,6.76432606]
[1763261428842,0.69,140.82,140.79,6.76432606]
[1763261429044,7.45432606,140.82,140.78,6.76432606]
[1763261429241,0.69,140.82,140.75,22.6512]
[1763261429441,0.69,140.81,140.78,6.76432606]
[1763261429655,0.69,140.81,140.77,6.76432606]
[1763261430274,0.69,140.81,140.79,6.76432606]
[1763261430446,0.69,140.81,140.75,22.6512]
[1763261430647,0.69,140.81,140.79,6.76432606]
[1763261430843,0.69,140.83,140.8,6.76432606]
[1763261431042,0.69,140.83,140.81,6.76432606]
[1763261432073,9.78882769,140.82,140.75,22.6512]
[1763261432277,0.69,140.83,140.8,6.76432606]
[1763261432479,0.69,140.82,140.75,22.6512]
[1763261432786,7.45432606,140.82,140.77,6.76432606]
[1763261433275,0.69,140.81,140.78,6.76432606]
[1763261434553,0.69,140.8,140.79,6.76432606]
[1763261435177,0.69,140.8,140.78,6.76432606]
[1763261435471,0.69,140.8,140.79,6.76432606]
[1763261435858,9.78882769,140.83,140.79,6.76432606]
[1763261436059,0.69,140.82,140.8,6.76432606]
[1763261436379,9.78882769,140.84,140.81,6.76432606]
[1763261436563,0.69,140.84,140.81,6.76432606]
[1763261436741,0.69,140.83,140.81,6.76432606]
[1763261437445,10.47882769,140.85,140.82,6.76432606]
[1763261437666,0.69,140.85,140.76,29.75546216]
[1763261437876,0.69,140.85,140.83,6.76432606]
[1763261440302,14.5540838,140.85,140.81,6.76432606]
[1763261440445,14.5540838,140.85,140.8,6.76432606]
[1763261440446,17.24315375,140.84,140.8,6.76432606]
[1763261440647,16.55315375,140.82,140.78,6.76432606]
[1763261440874,9.78882769,140.8,140.77,6.76432606]
[1763261441276,0.69,140.79,140.77,6.76432606]
[1763261444151,0.69,140.79,140.76,6.76432606]
[1763261444355,6.76432606,140.78,140.74,6.76432606]
[1763261444578,9.78882769,140.77,140.74,6.76432606]
[1763261444763,10.49882769,140.77,140.74,6.76432606]
[1763261444963,0.71,140.76,140.74,6.76432606]
[1763261445486,16.55315375,140.75,140.71,6.76432606]
[1763261445981,0.71,140.74,140.71,6.76432606]
[1763261446152,7.47432606,140.74,140.64,6.76432606]
[1763261446357,9.78882769,140.73,140.69,6.76432606]
[1763261446680,17.26315375,140.73,140.69,6.76432606]
[1763261446887,0.71,140.72,140.69,6.76432606]
[1763261447381,4.42635486,140.72,140.69,6.76432606]
[1763261447876,0.71,140.71,140.69,6.76432606]
[1763261448667,0.71,140.71,140.68,6.76432606]
[1763261449162,0.71,140.71,140.69,6.76432606]
[1763261450080,0.71,140.71,140.67,6.76432606]
[1763261450661,16.55315375,140.7,140.65,6.76432606]
[1763261450870,9.78882769,140.68,140.65,6.76432606]
[1763261451068,9.78882769,140.68,140.64,6.76432606]
[1763261451276,0.71,140.67,140.64,6.76432606]
[1763261451488,0.71,140.67,140.65,6.76432606]
[1763261454479,0.71,140.67,140.64,6.76432606]
[1763261455194,9.78882769,140.66,140.63,6.76432606]
[1763261455571,0.71,140.65,140.63,6.76432606]
[1763261456071,0.71,140.67,140.64,6.76432606]
[1763261456271,0.71,140.69,140.66,6.76432606]
[1763261456476,0.71,140.68,140.66,6.76432606]
[1763261457183,0.71,140.68,140.62,0.1]
[1763261457386,0.71,140.68,140.66,6.76432606]
[1763261458778,0.71,140.68,140.67,6.76432606]
[1763261458974,10.49882769,140.7,140.67,6.76432606]
[1763261459176,0.71,140.69,140.63,22.6512]
[1763261459386,0.71,140.69,140.67,6.76432606]
[1763261459571,0.71,140.69,140.66,6.76432606]
[1763261459991,7.47432606,140.69,140.65,6.76432606]
[1763261460492,0.71,140.68,140.65,6.76432606]
[1763261460793,9.78882769,140.67,140.64,6.76432606]
[1763261461201,0.71,140.66,140.64,6.76432606]
[1763261461779,0.71,140.66,140.65,6.76432606]
[1763261462009,0.71,140.68,140.65,6.76432606]
[1763261462318,0.71,140.68,140.67,6.76432606]
[1763261462977,0.71,140.68,140.67,4.25460568]
[1763261463207,0.71,140.68,140.66,4.25460568]
[1763261465701,0.71,140.68,140.65,4.25460568]
[1763261466398,14.04343337,140.67,140.62,4.35460568]
[1763261466600,126.8512,140.71,140.64,4.25460568]
[1763261466779,0.71,140.66,140.64,4.25460568]
[1763261466979,0.71,140.66,140.62,0.1]
[1763261467199,0.71,140.66,140.64,4.25460568]
[1763261468290,0.71,140.66,140.62,0.1]
[1763261468603,0.71,140.66,140.63,4.25460568]
[1763261469293,0.71,140.66,140.62,0.1]
[1763261469495,0.71,140.66,140.63,4.25460568]
[1763261470809,0.71,140.66,140.64,4.25460568]
[1763261470988,9.78882769,140.67,140.65,4.25460568]
[1763261471195,10.49882769,140.67,140.65,4.25460568]
[1763261471391,0.71,140.69,140.66,4.25460568]
[1763261471610,0.71,140.69,140.63,4.25460568]
[1763261471611,10.49882769,140.71,140.68,4.25460568]
[1763261471786,0.71,140.7,140.68,4.25460568]
[1763261471978,0.71,140.7,140.67,4.25460568]
[1763261472901,4.96460568,140.7,140.66,4.25460568]
[1763261473209,0.71,140.7,140.66,4.25460568]
[1763261473509,14.04343337,140.71,140.67,4.25460568]
[1763261473510,0.68,140.69,140.67,4.25460568]
[1763261473802,9.78882769,140.71,140.68,4.25460568]
[1763261473803,0.68,140.7,140.68,4.25460568]
[1763261474102,0.68,140.7,140.69,4.25460568]
[1763261474300,0.68,140.7,140.68,4.25460568]
[1763261474492,0.68,140.7,140.69,4.25460568]
[1763261476995,0.68,140.7,140.67,4.25460568]
[1763261477191,0.68,140.7,140.63,22.6512]
[1763261477380,0.68,140.7,140.66,4.25460568]
[1763261477581,3.71723576,140.69,140.66,4.25460568]
[1763261477784,3.71723576,140.69,140.62,0.1]
[1763261478010,0.68,140.68,140.66,4.25460568]
[1763261478411,0.68,140.68,140.62,22.7512]
[1763261478713,0.68,140.68,140.66,4.25460568]
[1763261480008,4.93460568,140.68,140.62,0.1]
[1763261480218,4.39723576,140.69,140.67,4.25460568]
[1763261480396,4.39723576,140.69,140.68,4.25460568]
[1763261480796,3.71723576,140.69,140.68,4.25460568]
[1763261481021,3.71723576,140.69,140.63,4.25460568]
[1763261481312,3.71723576,140.69,140.68,4.25460568]
[1763261482202,3.71723576,140.69,140.63,4.25460568]
[1763261482523,3.71723576,140.69,140.68,4.25460568]
[1763261486211,4.39723576,140.69,140.67,4.25460568]
[1763261486526,0.68,140.68,140.67,4.25460568]
[1763261486691,0.68,140.68,140.66,4.25460568]
[1763261487020,0.68,140.68,140.67,1.75054361]
[1763261488302,0.68,140.68,140.67,0.42991674]
[1763261488619,0.68,140.68,140.65,1.75054361]
[1763261489320,0.68,140.68,140.64,1.75054361]
[1763261489896,7.78834336,140.68,140.64,1.75054361]
[1763261490203,0.68,140.68,140.64,1.75054361]
[1763261490423,0.68,140.67,140.64,1.75054361]
[1763261490903,9.78882769,140.66,140.64,1.75054361]
[1763261491427,0.68,140.65,140.63,1.75054361]
[1763261491628,0.68,140.65,140.62,1.85054361]
[1763261491920,0.68,140.65,140.63,1.75054361]
[1763261493017,0.68,140.65,140.62,0.1]
[1763261493402,7.78987332,140.65,140.62,0.1]
[1763261493597,9.78882769,140.64,140.62,0.1]
[1763261493923,10.46882769,140.64,140.62,0.1]
[1763261494229,10.46882769,140.63,140.62,0.1]
[1763261494915,0.68,140.63,140.62,0.1]
[1763261495230,0.68,140.63,140.62,1.85054361]
[1763261496099,0.68,140.63,140.62,0.1]
[1763261496301,0.68,140.64,140.62,1.85054361]
[1763261497128,0.68,140.64,140.63,1.75054361]
[1763261497521,0.68,140.64,140.62,1.85054361]
[1763261498329,0.68,140.64,140.62,1.75054361]
[1763261498531,0.68,140.64,140.61,0.1]
[1763261498703,0.68,140.64,140.62,1.75054361]
[1763261498904,0.68,140.64,140.63,1.75054361]
[1763261500127,0.68,140.64,140.62,1.75054361]
[1763261500518,10.46882769,140.64,140.62,1.75054361]
[1763261500935,0.68,140.63,140.62,1.75054361]
[1763261501530,0.68,140.63,140.61,0.1]
[1763261501838,9.78882769,140.62,140.58,0.1]
[1763261502131,9.78882769,140.62,140.59,1.75054361]
[1763261502434,0.68,140.61,140.6,1.75054361]
[1763261502637,9.78882769,140.6,140.58,0.1]
[1763261502813,9.78882769,140.6,140.59,1.75054361]
[1763261503229,8.86141331,140.63,140.58,0.1]
[1763261503230,9.78882769,140.62,140.58,0.1]
[1763261503434,12.2093713,140.62,140.58,1.85054361]
[1763261503623,0.67,140.61,140.58,1.85054361]
[1763261505020,9.78882769,140.6,140.58,0.1]
[1763261505460,0.67,140.59,140.58,0.1]
[1763261507835,15.92948327,140.59,140.58,0.1]
[1763261508244,23.04236469,140.59,140.58,0.1]
[1763261508546,23.04236469,140.59,140.57,0.1]
[1763261508734,9.78882769,140.55,140.54,0.1]
[1763261509137,2.42054361,140.55,140.49,1.85054361]
[1763261509335,11.5393713,140.53,140.49,0.1]
[1763261509719,0.67,140.52,140.5,1.85054361]
[1763261510030,10.45882769,140.55,140.51,1.75054361]
[1763261510235,0.67,140.54,140.53,1.75054361]
[1763261510426,22.6512,140.56,140.53,1.75054361]
[1763261510641,0.67,140.56,140.55,1.75054361]
[1763261511421,3.72011197,140.59,140.55,1.75054361]
[1763261511726,3.72011197,140.59,140.58,1.75054361]
[1763261513432,3.72011197,140.59,140.54,0.4]
[1763261513632,3.72011197,140.59,140.58,1.75054361]
[1763261516729,3.72011197,140.59,140.56,0.4]
[1763261516932,3.72011197,140.59,140.58,1.75054361]
[1763261518828,3.72011197,140.59,140.58,9.15271805]
[1763261519526,0.67,140.66,140.58,31.80391805]
[1763261519761,9.78882769,140.67,140.58,34.86801389]
[1763261519968,9.78882769,140.67,140.63,1.75054361]
[1763261520129,9.78882769,140.67,140.64,1.75054361]
[1763261520327,0.67,140.67,140.66,1.75054361]
[1763261520530,10.45882769,140.67,140.6,1.75054361]
[1763261520836,0.67,140.67,140.66,1.75054361]
[1763261521144,10.45882769,140.69,140.66,1.75054361]
[1763261521335,9.78882769,140.71,140.67,1.75054361]
[1763261521525,9.78882769,140.69,140.61,22.6512]
[1763261521732,22.6512,140.7,140.61,22.6512]
[1763261521733,23.3212,140.7,140.67,1.75054361]
[1763261521928,23.3212,140.69,140.68,1.75054361]
[1763261522534,0.67,140.7,140.68,1.75054361]
[1763261522945,0.67,140.7,140.67,1.75054361]
[1763261524247,0.67,140.7,140.66,1.75054361]
[1763261524957,0.67,140.7,140.67,2.73532982]
[1763261528368,0.67,140.72,140.69,2.73532982]
[1763261528655,0.67,140.72,140.64,2.73532982]
[1763261528656,0.67,140.72,140.7,2.73532982]
[1763261529836,0.67,140.72,140.69,2.73532982]
[1763261530761,0.67,140.72,140.64,2.73532982]
[1763261530762,0.67,140.72,140.7,2.73532982]
[1763261534666,0.67,140.72,140.69,2.73532982]
[1763261534872,2.73532982,140.7,140.62,61.8]
[1763261535047,2.73532982,140.7,140.66,2.73532982]
[1763261535246,0.7,140.69,140.66,2.73532982]
[1763261535562,0.7,140.69,140.67,2.73532982]
[1763261536477,0.7,140.69,140.66,2.73532982]
[1763261536641,0.7,140.69,140.56,17.78578857]
[1763261536642,9.78882769,140.66,140.54,7.11512712]
[1763261536848,2.73532982,140.63,140.52,2.73532982]
[1763261537083,12.52415751,140.64,140.59,2.73532982]
[1763261537361,12.52415751,140.64,140.6,2.73532982]
[1763261537669,0.7,140.66,140.63,2.73532982]
[1763261538264,0.7,140.66,140.64,2.73532982]
[1763261538581,0.7,140.67,140.64,2.73532982]
[1763261538746,9.78882769,140.66,140.62,2.73532982]
[1763261538950,16.56582594,140.66,140.61,6.77699825]
[1763261539178,0.7,140.65,140.61,6.77699825]
[1763261540443,0.7,140.65,140.62,6.77699825]
[1763261541073,0.7,140.65,140.58,22.6512]
[1763261541256,0.7,140.65,140.62,6.77699825]
[1763261541875,0.7,140.65,140.63,6.77699825]
[1763261542670,23.3512,140.67,140.64,6.77699825]
[1763261543082,0.7,140.66,140.64,6.77699825]
[1763261543451,23.3512,140.67,140.64,6.77699825]
[1763261543760,6.77699825,140.7,140.65,6.77699825]
[1763261543965,33.14002769,140.69,140.66,6.77699825]
[1763261544165,23.3512,140.69,140.66,6.77699825]
[1763261544372,0.7,140.69,140.67,6.77699825]
[1763261545380,6.77699825,140.68,140.63,6.77699825]
[1763261545584,6.77699825,140.67,140.63,6.77699825]
[1763261545955,0.7,140.66,140.63,6.77699825]
[1763261548254,9.78882769,140.7,140.63,6.77699825]
[1763261548461,6.77699825,140.68,140.63,6.77699825]
[1763261548960,0.7,140.67,140.63,6.77699825]
[1763261550377,7.47699825,140.69,140.64,6.77699825]
[1763261550563,29.42819825,140.71,140.66,6.77699825]
[1763261550879,0.7,140.7,140.66,6.77699825]
[1763261551095,7.47699825,140.7,140.66,6.77699825]
[1763261551476,0.7,140.69,140.66,6.77699825]
[1763261553276,0.7,140.69,140.65,6.77699825]
[1763261553481,7.47699825,140.69,140.65,6.77699825]
[1763261553986,0.7,140.68,140.65,6.77699825]
[1763261554198,6.77699825,140.67,140.62,6.77699825]
[1763261554663,0.7,140.66,140.62,6.77699825]
[1763261556086,7.47699825,140.66,140.62,6.77699825]
[1763261556267,6.77699825,140.65,140.61,6.77699825]
[1763261556468,7.47699825,140.65,140.61,6.77699825]
[1763261556768,0.7,140.64,140.61,6.77699825]
[1763261557659,0.7,140.64,140.6,6.77699825]
[1763261558264,0.7,140.64,140.59,22.6512]
[1763261558265,6.77699825,140.63,140.59,6.77699825]
[1763261558467,6.77699825,140.62,140.52,9.78882769]
[1763261558693,7.47699825,140.62,140.57,6.77699825]
[1763261558862,7.47699825,140.61,140.54,22.6512]
[1763261559056,7.47699825,140.61,140.57,6.77699825]
[1763261559275,0.7,140.61,140.58,6.77699825]
[1763261559784,0.7,140.63,140.59,6.77699825]
[1763261560063,0.7,140.63,140.61,6.77699825]
[1763261560395,0.7,140.67,140.62,6.77699825]
[1763261560558,0.7,140.67,140.64,6.77699825]
[1763261560755,0.7,140.67,140.65,6.77699825]
[1763261560959,0.7,140.67,140.65,2.73572401]
[1763261561674,0.7,140.67,140.64,2.73572401]
[1763261562990,0.7,140.67,140.64,6.77459136]
[1763261563487,0.7,140.67,140.6,6.77459136]
[1763261563488,6.77459136,140.65,140.6,6.77459136]
[1763261563695,7.49459136,140.64,140.6,6.77459136]
[1763261564182,0.72,140.64,140.6,6.77459136]
[1763261564488,0.72,140.63,140.6,6.77459136]
[1763261565691,0.72,140.63,140.61,6.77459136]
[1763261567072,0.72,140.63,140.6,6.77459136]
[1763261567391,0.72,140.63,140.59,6.77459136]
[1763261567688,0.72,140.63,140.6,6.77459136]
[1763261568674,0.72,140.64,140.61,6.77459136]
[1763261569579,0.72,140.64,140.57,22.6512]
[1763261569781,0.72,140.64,140.6,6.77459136]
[1763261573498,0.72,140.64,140.61,6.77459136]
[1763261575867,32.44002769,140.67,140.61,6.77459136]
[1763261576106,17.28341905,140.66,140.62,6.77459136]
[1763261576484,0.72,140.65,140.62,6.77459136]
[1763261576672,104.92,140.68,140.64,6.77459136]
[1763261577177,0.72,140.67,140.64,6.77459136]
[1763261580104,0.72,140.7,140.66,6.77459136]
[1763261580286,17.82,140.73,140.69,6.77459136]
[1763261580601,0.72,140.72,140.7,6.77459136]
[1763261580895,0.72,140.73,140.71,6.77459136]
[1763261581480,0.72,140.73,140.7,6.77459136]
[1763261582496,6.77459136,140.71,140.67,6.77459136]
[1763261582714,9.78882769,140.72,140.67,6.77459136]
[1763261582715,16.56341905,140.72,140.67,6.77459136]
[1763261582881,0.72,140.71,140.68,2.73485095]
[1763261583080,0.72,140.71,140.64,2.73485095]
[1763261583413,104.2,140.78,140.64,2.73485095]
[1763261583414,0.72,140.73,140.7,2.73485095]
[1763261583582,0.72,140.73,140.72,2.73485095]
[1763261583783,0.72,140.74,140.72,2.73485095]
[1763261583976,32.44002769,140.76,140.73,2.73485095]
[1763261584284,0.72,140.75,140.73,2.73485095]
[1763261584479,0.72,140.75,140.64,19.6339321]
[1763261584699,2.73485095,140.72,140.67,2.73485095]
[1763261584884,2.73485095,140.7,140.66,2.73485095]
[1763261585202,9.78882769,140.69,140.65,2.73485095]
[1763261585404,0.72,140.69,140.65,2.73485095]
[1763261585583,0.72,140.68,140.66,2.73485095]
[1763261585983,0.72,140.68,140.65,2.73485095]
[1763261586781,0.72,140.68,140.61,0.042671]
[1763261587090,0.72,140.68,140.64,4.25606236]
[1763261587482,0.72,140.68,140.65,4.25606236]
[1763261587684,22.6512,140.7,140.66,4.25606236]
[1763261587892,0.72,140.69,140.67,4.25606236]
[1763261589603,0.72,140.69,140.68,4.25606236]
[1763261589805,0.72,140.7,140.68,4.25606236]
[1763261589996,0.72,140.71,140.68,4.25606236]
[1763261590814,0.72,140.71,140.69,4.25606236]
[1763261590997,0.72,140.73,140.7,4.25606236]
[1763261591204,0.72,140.72,140.7,4.25606236]
[1763261592192,0.72,140.72,140.63,4.25606236]
[1763261592390,0.72,140.72,140.69,4.25606236]
[1763261593404,0.72,140.72,140.68,4.25606236]
[1763261595402,0.72,140.72,140.69,4.25606236]
[1763261596823,0.72,140.72,140.7,4.25606236]
[1763261597333,0.72,140.72,140.69,4.25606236]
[1763261597510,0.72,140.72,140.68,4.25606236]
[1763261598804,0.72,140.72,140.7,4.25606236]
[1763261600022,0.72,140.72,140.69,4.25606236]
[1763261601438,0.71,140.74,140.71,4.25606236]
[1763261601613,0.71,140.74,140.72,4.25606236]
[1763261604614,104.91,140.76,140.73,4.25606236]
[1763261604808,104.2,140.76,140.74,4.25606236]
[1763261605016,26.86882769,140.77,140.74,4.25606236]
[1763261605215,0.71,140.76,140.74,4.25606236]
[1763261606915,0.71,140.76,140.73,4.25606236]
[1763261607551,0.71,140.76,140.74,4.25606236]
[1763261607841,0.71,140.76,140.73,4.25606236]
[1763261608930,0.71,140.76,140.73,1.74872442]
[1763261609526,0.71,140.76,140.74,1.74872442]
[1763261610242,0.71,140.76,140.69,22.6512]
[1763261610447,0.71,140.76,140.74,1.74872442]
[1763261611230,0.71,140.76,140.7,6.99489768]
[1763261611427,0.71,140.76,140.74,1.74872442]
[1763261616832,0.71,140.76,140.72,1.74872442]
[1763261617941,0.71,140.76,140.69,84.4512]
[1763261617942,1.74872442,140.78,140.73,1.74872442]
[1763261618256,0.2,140.79,140.74,1.74872442]
[1763261618435,0.2,140.79,140.7,6.99489768]
[1763261618436,0.2,140.79,140.75,1.74872442]
[1763261618632,2.65872442,140.79,140.75,1.74872442]
[1763261619034,0.71,140.78,140.75,1.74872442]
[1763261619234,0.71,140.78,140.74,1.74872442]
[1763261620057,2.65872442,140.79,140.75,1.74872442]
[1763261620261,0.91,140.79,140.75,1.74872442]
[1763261620947,2.65872442,140.79,140.75,1.74872442]
[1763261621131,1.94872442,140.79,140.73,22.6512]
[1763261621334,0.71,140.78,140.74,1.74872442]
[1763261621541,0.71,140.78,140.75,1.74872442]
[1763261623749,0.71,140.78,140.74,24.39992442]
[1763261625450,0.71,140.78,140.56,35.56950302]
[1763261625451,1.74872442,140.77,140.66,85.15611317]
[1763261625650,9.78882769,140.77,140.7,1.74872442]
[1763261625854,2.43872442,140.76,140.72,1.74872442]
[1763261626052,1.74872442,140.77,140.72,1.74872442]
[1763261626447,1.74872442,140.75,140.71,1.74872442]
[1763261626965,32.64002769,140.79,140.71,1.74872442]
[1763261626966,0.69,140.74,140.71,1.74872442]
[1763261627375,0.69,140.74,140.7,1.74872442]
[1763261627845,0.69,140.74,140.71,1.74872442]
[1763261629274,2.43872442,140.74,140.65,7.10965185]
[1763261629454,2.43872442,140.74,140.7,1.74872442]
[1763261629654,0.69,140.73,140.7,1.74872442]
[1763261630090,32.64002769,140.79,140.7,1.74872442]
[1763261630379,1.74872442,140.74,140.7,1.74872442]
[1763261631043,2.43872442,140.74,140.7,1.74872442]
[1763261631575,0.69,140.73,140.7,1.74872442]
[1763261632466,0.69,140.73,140.69,1.74872442]
[1763261634470,0.69,140.73,140.69,24.39992442]
[1763261634768,0.69,140.73,140.7,1.74872442]
[1763261634951,2.43872442,140.76,140.71,1.74872442]
[1763261635154,1.74872442,140.76,140.72,1.74872442]
[1763261635357,0.69,140.75,140.72,1.74872442]
[1763261636060,0.69,140.75,140.67,22.6512]
[1763261636268,2.43872442,140.75,140.7,22.6512]
[1763261636450,0.69,140.75,140.71,1.74872442]
[1763261636649,2.43872442,140.75,140.71,1.74872442]
[1763261637060,0.69,140.75,140.71,1.74872442]
[1763261637264,0.69,140.75,140.72,1.74872442]
[1763261637882,2.43872442,140.76,140.72,1.74872442]
[1763261638073,0.69,140.75,140.71,1.74872442]
[1763261641151,0.69,140.75,140.7,22.6512]
[1763261641354,2.43872442,140.75,140.71,1.74872442]
[1763261641952,1.74872442,140.75,140.71,1.74872442]
[1763261642153,0.69,140.74,140.71,1.74872442]
[1763261642779,0.69,140.74,140.7,24.39992442]
[1763261642981,1.74872442,140.72,140.67,22.6512]
[1763261643177,1.74872442,140.73,140.68,1.74872442]
[1763261643358,2.43872442,140.73,140.69,1.74872442]
[1763261643551,0.69,140.72,140.69,1.74872442]
[1763261644357,2.43872442,140.72,140.68,1.74872442]
[1763261644552,0.69,140.72,140.67,24.39992442]
[1763261644774,0.69,140.71,140.68,1.74872442]
[1763261647160,1.74872442,140.7,140.66,1.74872442]
[1763261647381,0.69,140.71,140.66,1.74872442]
[1763261647681,0.69,140.71,140.67,1.74872442]
[1763261647910,2.43872442,140.71,140.67,1.74872442]
[1763261648257,0.69,140.7,140.67,1.74872442]
[1763261648874,0.69,140.7,140.66,2.73468514]
[1763261649070,0.69,140.7,140.67,2.73468514]
[1763261651186,2.73468514,140.72,140.68,2.73468514]
[1763261651368,104.2,140.78,140.67,22.6512]
[1763261651569,0.69,140.72,140.69,2.73468514]
[1763261652088,2.73468514,140.74,140.7,2.73468514]
[1763261652276,0.69,140.73,140.7,2.73468514]
[1763261653666,8.70297469,140.79,140.72,2.73468514]
[1763261653667,0.71,140.75,140.72,2.73468514]
[1763261653894,18.49180238,140.79,140.73,2.73468514]
[1763261653895,2.73468514,140.77,140.73,2.73468514]
[1763261654093,10.49882769,140.78,140.73,2.73468514]
[1763261654094,3.44468514,140.78,140.73,2.73468514]
[1763261654267,0.71,140.77,140.73,2.73468514]
[1763261654468,3.44468514,140.77,140.73,2.73468514]
[1763261654667,2.73468514,140.76,140.72,2.73468514]
[1763261654894,3.44468514,140.76,140.72,2.73468514]
[1763261655082,0.71,140.75,140.72,2.73468514]